[Event "4NCL Div 1 2024-25"]
[Site "England"]
[Date "2025.04.06"]
[Round "8.41"]
[White "Maroroa Jones, Gawain C B"]
[Black "Larkin, Vladyslav"]
[Result "1-0"]
[Annotator "TA"]
[ECO "A25"]
[WhiteElo "2654"]
[BlackElo "2455"]
[PlyCount "105"]
[EventDate "2024.11.23"]
[EventType "team-tourn"]
[EventCountry "ENG"]
[SourceTitle "playchess.com"]
[Source "ChessBase"]
[SourceQuality "1"]
[TimeControl "40/6000+30:3000+30"]

{[%evp 9,105,6,21,10,12,11,16,11,18,14,15,3,14,-16,6,6,14,-1,17,5,10,25,32,16,25,10,26,19,33,28,25,26,41,27,18,4,23,14,25,0,14,8,13,13,16,0,0,-11,0,-86,-78,-97,-93,-143,-161,-130,-115,-112,-74,-85,-97,-110,54,60,187,190,186,195,208,201,185,203,193,188,189,181,175,187,178,200,198,197,187,122,216,177,257,257,257,257,257,257,277,285,513,518,590,430]} 1. c4 {[%emt 0:10:07]} e5 {[%emt 0:10:28]} 2. g3 {[%emt 0:00:07]} Nc6 {[%emt 0:00:14]} 3. Bg2 {[%emt 0:00:09]} Bc5 {[%emt 0:00:05]} 4. Nc3 {[%emt 0:00:06]} d6 {[%emt 0:00:08]} 5. Nf3 {[%emt 0:00:18]} a6 {[%emt 0:00:26]} 6. d3 {[%emt 0:00:58] A25: English Opening vs King's Indian with ...Nc6 but without early d3.} Nf6 {[%emt 0:00:57]} 7. O-O {[%emt 0:00:21]} h6 {[%emt 0:00:08] 7...h6 is better than 7...0-0.} 8. e3 {[%emt 0:00:13] The position is equal.} O-O {[%emt 0:00:19]} 9. a3 {[%emt 0:01:32] was the old line (9.d4).} Ba7 {[%emt 0:02:12]} 10. b4 {[%emt 0:01:37]} Be6 {[%emt 0:01:19]} 11. h3 {[%emt 0:01:26]} Ne7 $146 {[%emt 0:13:39]} (11... Qd7 12. Kh2 Ne7 13. a4 Ng6 14. Nd2 c6 15. Nce4 Ne8 16. c5 d5 17. Nc3 a5 {1-0 Kuljasevic,D (2567)-Valsecchi,A (2407) Skopje Karposh op 2014 (6)}) 12. Kh2 {[%emt 0:06:02]} Re8 {[%emt 0:20:01]} 13. Bb2 {[%emt 0:02:40]} Rb8 {[%emt 0:04:01]} 14. a4 {[%emt 0:05:52]} c6 {[%emt 0:09:13]} 15. a5 {[%emt 0:05:17]} Rc8 {[%emt 0:02:05]} 16. Na4 {[%emt 0:04:55]} Nd7 {[%emt 0:01:00]} 17. Rc1 {[%emt 0:04:16]} Bb8 {[%emt 0:01:15]} 18. Nd2 {[%emt 0:05:38]} d5 {[%emt 0:18:01]} 19. Nb3 {[%emt 0:01:25]} Bd6 {[%emt 0:00:06]} 20. Qd2 {[%emt 0:05:06]} f6 {[%emt 0:00:10]} 21. Nb6 {[%emt 0:01:56]} Nxb6 {[%emt 0:00:48]} 22. axb6 {[%emt 0:00:06]} Qd7 {[%emt 0:02:24]} (22... Qxb6 $2 23. c5 Qd8 24. cxd6 $18) 23. e4 {[%emt 0:01:52]} Rcd8 {[%emt 0:06:51]} 24. Qe1 {[%emt 0:11:20]} Nc8 {[%emt 0:07:05]} 25. exd5 {[%emt 0:08:28]} cxd5 {[%emt 0:00:03]} 26. c5 {[%emt 0:00:13]} (26. cxd5 Bf7 $15) 26... Bb8 {[%emt 0:00:23]} 27. c6 {[%emt 0:01:02]} bxc6 {[%emt 0:00:03]} 28. Nc5 {[%emt 0:00:04][%csl LRa6,LRd7]} Qf7 {[%emt 0:00:06]} 29. b7 {[%emt 0:02:29]} (29. Nxa6 $11 Nxb6 30. Rxc6) 29... Na7 $17 {[%emt 0:04:38]} 30. d4 {[%emt 0:06:07]} e4 {[%emt 0:04:45]} 31. b5 {[%emt 0:01:26]} (31. Ra1 $142) 31... Nxb5 {[%emt 0:01:38]} 32. Qa5 {[%emt 0:00:13]} Bf5 {[%emt 0:00:54]} 33. Qxa6 {[%emt 0:00:23]} Qc7 {[%emt 0:00:58]} 34. Nxe4 {[%emt 0:02:58]} Bxe4 {[%emt 0:00:30]} 35. Rxc6 {[%emt 0:00:06]} Rd6 $2 {[%emt 0:00:02]} (35... Bxg2 $1 $17 36. Kxg2 (36. Rxc7 $2 Nxc7 37. Qd3 Bxf1 $19) 36... Rd6) 36. Rfc1 $14 {[%emt 0:00:56] Really sharp!} Na7 {[%emt 0:00:14]} (36... Rxc6 $14 37. Rxc6 Bxg2) 37. Rxc7 $18 {[%emt 0:04:10]} Rxa6 {[%emt 0:00:03] [#]} 38. Bxe4 $1 {[%emt 0:00:04]} dxe4 {[%emt 0:00:07]} (38... Rxe4 $2 {perishes.} 39. Rc8+ Kh7 40. Rxb8 $18) 39. Rc8 {[%emt 0:00:05]} Kf7 {[%emt 0:02:08] [#] White must now prevent ...Rb6.} 40. Rxe8 $1 {[%emt 0:00:15]} Kxe8 {[%emt 0:00:05]} 41. Rc8+ {[%emt 0:50:06]} Kd7 {[%emt 0:21:19]} 42. Rxb8 {[%emt 0:00:00][%mdl 4096] Endgame KRB-KRN. White is a pawn up.} Kc7 {[%emt 0:00:06]} 43. Rg8 {[%emt 0:00:00]} Kxb7 {[%emt 0:00:10]} 44. Rxg7+ {[%emt 0:00:00]} Kc6 {[%emt 0:00:08]} 45. Bc1 {[%emt 0:00:00]} Nb5 {[%emt 0:04:31]} 46. Be3 {[%emt 0:00:00]} (46. Bxh6 $18 {Hoping for Be3.} Nxd4 47. Rf7 Nf3+ 48. Kg2) 46... Kd5 {[%emt 0:00:25]} (46... Nc3 $16) 47. g4 {[%emt 0:00:00]} (47. Bxh6 Nxd4 48. g4 Ra1 $16) 47... Rd6 {[%emt 0:08:54]} (47... Nc3 $142 48. Rc7 (48. Bxh6 Nd1 $16) 48... Ra3 49. Rc5+ (49. Bxh6 Nd1 $16) 49... Ke6) 48. Rg6 {[%emt 0:00:00]} (48. Bxh6 Nxd4 49. Be3 f5 $16) 48... Nxd4 {[%emt 0:00:23]} 49. Rxh6 {[%emt 0:00:00]} (49. Bxh6 f5 50. Rxd6+ Kxd6 51. gxf5 Nxf5 $14) 49... Nc2 {[%emt 0:01:49]} 50. Kg3 {[%emt 0:00:00]} Rc6 {[%emt 0:03:30]} 51. Kf4 {[%emt 0:00:00]} Ne1 $2 {[%emt 0:01:32]} (51... Ke6 52. g5 (52. Kxe4 Kf7 $18) 52... Kf7 53. Rxf6+ (53. Kxe4 Re6+ 54. Kf3 fxg5 $18) 53... Rxf6+ 54. gxf6 Kxf6) 52. Kf5 {[%emt 0:00:00]} Ng2 {[%emt 0:00:36]} 53. Rh8 {[%emt 0:00:00] Weighted Error Value: White=0.10 (very precise) /Black=0.27 (precise)   Mistake:       	White=3     	Black=5      Inaccurate:     	White=2     	Black=1      OK:         	White=17    	Black=18     Best:        	White=6     	Black=2      Strong:       	White=2     	---} 1-0

[Event "4NCL Div 1 2024-25"]
[Site "England"]
[Date "2025.04.06"]
[Round "8.42"]
[White "Bottazzi, Ulysse"]
[Black "Alsina Leal, Daniel"]
[Result "1/2-1/2"]
[Annotator "TA"]
[ECO "B33"]
[WhiteElo "2344"]
[BlackElo "2496"]
[PlyCount "148"]
[EventDate "2024.11.23"]
[EventType "team-tourn"]
[EventCountry "ENG"]
[SourceTitle "playchess.com"]
[Source "ChessBase"]
[SourceQuality "1"]
[TimeControl "40/6000+30:3000+30"]

{[%evp 24,148,16,17,14,30,39,17,18,0,0,-16,-20,-72,-58,-61,-63,-58,-61,-77,-71,-71,-48,-50,-50,-47,-41,-53,-46,-46,-37,-46,-32,-39,0,-60,-56,-50,-52,-83,-54,-79,-31,-34,-33,-30,-32,-31,-8,-36,-34,-32,-33,-52,-36,-54,-52,-51,-33,-33,-16,-11,-12,-16,-14,-36,-36,-36,-36,-37,-37,-44,-36,-37,-38,-38,0,0,0,-44,-44,-44,-44,-45,-45,-45,0,0,0,0,0,0,0,0,0,0,0,0,0,0,0,0,0,0,0,0,0,0,0,-21,-21,-21,-21,-54,-54,-54,-54,-54,-54,-54,-54,-54,-54,-54,-54,-54,-54]} 1. e4 {[%emt 0:10:39]} c5 {[%emt 0:10:02]} 2. Nf3 {[%emt 0:00:33]} Nc6 {[%emt 0:00:12]} 3. d4 {[%emt 0:01:05]} cxd4 {[%emt 0:00:06]} 4. Nxd4 {[%emt 0:00:08]} Nf6 {[%emt 0:00:06]} 5. Nc3 {[%emt 0:00:27]} e5 {[%emt 0:00:29]} 6. Ndb5 {[%emt 0:00:25]} d6 {[%emt 0:00:07]} 7. Bg5 {[%emt 0:00:53]} a6 {[%emt 0:00:07]} 8. Na3 {[%emt 0:00:14]} b5 {[%emt 0:00:14]} 9. Nd5 {[%emt 0:00:58]} Be7 {[%emt 0:00:09]} 10. Bxf6 {[%emt 0:00:08]} Bxf6 {[%emt 0:00:06]} 11. c3 {[%emt 0:00:49]} Bg5 {[%emt 0:00:22]} 12. Nc2 {[%emt 0:00:21]} Rb8 {[%emt 0:00:15]} 13. a4 {[%emt 0:02:17]} bxa4 {[%emt 0:00:22] B33: Sicilian: Pelikan and Sveshnikov Variations.} 14. Ncb4 {[%emt 0:00:10]} Nxb4 {[%emt 0:00:28]} 15. cxb4 $1 {[%emt 0:00:58][%mdl 4] A sharp opening 15.cxb4 is setting a new trend.} O-O {[%emt 0:00:57] The position is equal.} 16. Qxa4 {[%emt 0:05:42][%cal Of1c4]} Bb7 {[%emt 0:03:15]} 17. Bc4 {[%emt 0:25:03]} Qc8 {[%emt 0:04:43]} 18. Bxa6 $146 {[%emt 0:15:34]} (18. Qb3 $11 {remains equal.}) (18. Qb3 Qg4 19. Qf3 Qxf3 20. gxf3 Bxd5 21. Bxd5 Rxb4 22. Rxa6 Rxb2 23. O-O Bd8 24. Rxd6 {½-½ Kovalev,V (2612)-Matlakov,M (2662) Dubai op-A 23rd 2023 (3)}) 18... Qg4 $1 $17 {[%emt 0:03:32][%csl LRe4,LRg2] Black sacrificed a pawn} 19. O-O {[%emt 0:00:50] [#] Threatens to win with Bxb7.} Bxd5 {[%emt 0:03:50]} (19... Qxe4 $2 {is the wrong capture.} 20. Bxb7 Qe2 21. Bc6 $18) 20. exd5 {[%emt 0:00:25]} Qxb4 {[%emt 0:06:15]} 21. Qd7 {[%emt 0:09:55][%cal Ob2b3]} Rfd8 {[%emt 0:13:57]} 22. Qf5 {[%emt 0:00:25]} Qf4 {[%emt 0:14:45] Black attacks} 23. Qxf4 {[%emt 0:00:50]} Bxf4 {[%emt 0:05:46]} 24. Rfb1 {[%emt 0:06:17]} Bd2 {[%emt 0:04:17] Repels b4} 25. b3 {[%emt 0:04:36]} f5 {[%emt 0:06:28]} 26. Bc4 {[%emt 0:03:33]} Ra8 {[%emt 0:08:17]} 27. Kf1 {[%emt 0:01:50]} e4 {[%emt 0:10:19] Black has a king side majority} 28. Bb5 {[%emt 0:05:09]} Rdb8 {[%emt 0:02:06] [#]} 29. Ra4 {[%emt 0:14:46]} ({White should play} 29. Rxa8 $11 Rxa8 30. Bd7) 29... Ra5 $15 {[%emt 0:01:16]} 30. Rxa5 {[%emt 0:00:00]} Bxa5 {[%emt 0:00:01][%mdl 4096] Endgame KRB-KRB} 31. Ba4 {[%emt 0:00:00]} Bb4 {[%emt 0:01:36]} 32. Ke2 {[%emt 0:00:00]} Rb7 {[%emt 0:03:23]} (32... Kf7 $17) 33. f3 {[%emt 0:00:00]} Re7 {[%emt 0:02:38]} 34. fxe4 {[%emt 0:00:30]} Rxe4+ {[%emt 0:00:14]} 35. Kd3 {[%emt 0:00:21]} Bc5 {[%emt 0:00:39]} 36. Bd7 {[%emt 0:00:41]} g6 {[%emt 0:00:50]} 37. Rb2 {[%emt 0:01:28]} Kg7 {[%emt 0:02:04]} 38. Be6 {[%emt 0:00:40]} h5 {[%emt 0:01:40]} 39. Re2 {[%emt 0:00:31]} Rb4 {[%emt 0:02:03]} 40. Kc3 {[%emt 0:00:32]} h4 {[%emt 0:01:45]} 41. h3 {[%emt 0:25:02]} Rd4 {[%emt 0:29:16]} 42. Bd7 {[%emt 0:04:15]} Rxd5 {[%emt 0:05:09]} 43. b4 {[%emt 0:00:46]} Bb6 {[%emt 0:03:58]} 44. Rd2 {[%emt 0:01:00]} Rxd2 {[%emt 0:04:58]} 45. Kxd2 {[%emt 0:00:02] KB-KB. Black is a pawn up.} Kf6 {[%emt 0:00:14]} 46. Kd3 {[%emt 0:05:01]} d5 {[%emt 0:03:35]} 47. b5 {[%emt 0:03:20]} Ke5 {[%emt 0:00:34]} 48. Be8 {[%emt 0:00:48]} g5 {[%emt 0:00:17]} 49. Bd7 {[%emt 0:01:38]} Kf4 {[%emt 0:01:12]} 50. Bc6 {[%emt 0:01:03]} Ke5 {[%emt 0:03:29]} 51. Bd7 {[%emt 0:00:31]} Ba7 {[%emt 0:00:43]} 52. Bc8 {[%emt 0:01:02]} Bc5 {[%emt 0:00:08]} 53. Bd7 {[%emt 0:00:45]} Bb6 {[%emt 0:00:08]} 54. Bc8 {[%emt 0:01:01]} Kf4 {[%emt 0:00:32]} 55. Bb7 {[%emt 0:00:09]} d4 {[%emt 0:01:04]} 56. Bc8 {[%emt 0:00:26]} g4 {[%emt 0:01:37]} 57. Bd7 {[%emt 0:00:19]} Ba7 {[%emt 0:01:35]} 58. Bc8 {[%emt 0:00:18]} Bc5 {[%emt 0:00:15]} 59. Bd7 {[%emt 0:00:22]} Bb6 {[%emt 0:00:05]} 60. Bc8 {[%emt 0:00:10]} gxh3 {[%emt 0:00:49]} 61. gxh3 {[%emt 0:00:03]} Ke5 {[%emt 0:00:22]} 62. Bd7 {[%emt 0:00:22]} Ba7 {[%emt 0:00:27]} 63. Bc8 {[%emt 0:00:13]} Bc5 {[%emt 0:00:27]} 64. Bd7 {[%emt 0:00:12]} Bb6 {[%emt 0:00:11]} 65. Bc8 {[%emt 0:00:09]} f4 {[%emt 0:00:36] and ...f3 should not be overlooked} 66. Bg4 {[%emt 0:00:32]} Kd5 {[%emt 0:00:16]} 67. Bf3+ {[%emt 0:00:41]} Kc5 {[%emt 0:00:05]} 68. Bg4 {[%emt 0:00:30]} Kxb5 {[%emt 0:00:16] Black is slightly better.} 69. Bf3 {[%emt 0:00:05]} Kc5 {[%emt 0:00:12]} 70. Bg4 {[%emt 0:00:09]} Ba5 {[%emt 0:00:34]} 71. Bf3 {[%emt 0:00:09]} Be1 {[%emt 0:00:10]} 72. Bg4 {[%emt 0:00:19]} Bf2 {[%emt 0:00:19]} 73. Bf3 {[%emt 0:00:08]} Be3 {[%emt 0:00:09]} 74. Bg4 {[%emt 0:00:07]} Kd5 {[%emt 0:04:07] Weighted Error Value: White=0.10 (very precise) /Black=0.08 (flawless)   Mistake:       	White=2     	Black=1      Inaccurate:     	White=3     	Black=4      OK:         	White=25    	Black=21     Best:        	White=1     	Black=1} 1/2-1/2

[Event "4NCL Div 1 2024-25"]
[Site "England"]
[Date "2025.04.06"]
[Round "8.43"]
[White "Plat, Vojtech"]
[Black "Bezuidenhout, Roland"]
[Result "1-0"]
[Annotator "TA"]
[ECO "B22"]
[WhiteElo "2479"]
[BlackElo "2285"]
[PlyCount "67"]
[EventDate "2024.11.23"]
[EventType "team-tourn"]
[EventCountry "ENG"]
[SourceTitle "playchess.com"]
[Source "ChessBase"]
[SourceQuality "1"]
[TimeControl "40/6000+30:3000+30"]

{[%evp 16,67,10,16,32,30,37,27,30,0,71,72,78,83,83,72,77,74,92,62,75,35,47,57,68,46,62,74,70,55,64,63,77,65,254,252,376,371,556,554,802,772,1343,1397,1371,1291,1251,1184,29979,5589,29984,29985,29985,29986]} 1. e4 {[%emt 0:10:04][%cal Be2e4,Be4e5][%mdl 32]} c5 {[%emt 0:11:11]} 2. Nf3 {[%emt 0:00:05]} Nc6 {[%emt 0:00:30]} 3. c3 {[%emt 0:00:11]} Nf6 {[%emt 0:00:07]} 4. e5 {[%emt 0:00:09]} Nd5 {[%emt 0:00:07]} 5. Bc4 {[%emt 0:00:16]} Nb6 {[%emt 0:00:08]} 6. Bb3 {[%emt 0:00:05]} c4 {[%emt 0:00:19]} 7. Bc2 {[%emt 0:00:01]} d6 {[%emt 0:00:10]} 8. exd6 {[%emt 0:00:09]} Qxd6 {[%emt 0:00:07]} 9. O-O {[%emt 0:00:05]} Bg4 {[%emt 0:00:13] B22: Sicilian: 2 c3.} 10. h3 {[%emt 0:00:04]} Bh5 {[%emt 0:00:06]} 11. Re1 {[%emt 0:00:02] Against Ne5} O-O-O {[%emt 0:00:11] White has an edge.} 12. b3 {[%emt 0:00:33]} e6 {[%emt 0:11:38]} (12... Qf6 $11) 13. Na3 $16 {[%emt 0:01:41]} Qc7 $146 {[%emt 0:18:35]} (13... Qf4 14. Nxc4 Nxc4 15. bxc4 Qxc4 16. Be4 f5 17. Bxc6 Qxc6 18. d4 Bd6 19. Bg5 Rde8 {½-½ Christiansen,J (2600)-Akash,G (2449) Prague op 2020 (7)}) 14. Nxc4 {[%emt 0:05:51]} (14. bxc4 Bxa3 15. Bxa3 Nxc4 $17) 14... Nxc4 {[%emt 0:00:09]} 15. bxc4 {[%emt 0:00:05]} Na5 {[%emt 0:01:42][%cal Bc6a5,Ba5c4,Bc4d2][%mdl 32]} 16. d4 {[%emt 0:02:16]} Nxc4 {[%emt 0:00:24]} 17. Qe2 {[%emt 0:00:49]} Bd6 {[%emt 0:04:18]} 18. Rb1 {[%emt 0:02:22]} Bg6 {[%emt 0:01:32]} 19. Bxg6 {[%emt 0:03:56]} hxg6 {[%emt 0:00:08]} 20. a4 {[%emt 0:00:20]} Rhe8 {[%emt 0:11:28]} 21. Nd2 {[%emt 0:08:41]} Nxd2 {[%emt 0:01:01]} 22. Bxd2 {[%emt 0:03:06]} Qc6 {[%emt 0:00:53]} 23. c4 {[%emt 0:05:10]} Bc7 {[%emt 0:04:58]} 24. Be3 {[%emt 0:00:38][%cal Bd2e3,Be3f4,Bf4e5][%mdl 32]} Qd6 $2 {[%emt 0:02:22] [#] This costs Black the game.} (24... Kb8 $14) 25. Qf3 $1 $18 {[%emt 0:02:18][%csl LRb7,LRf7]} ({Resist} 25. g3 $6 Rd7 26. h4 Rh8 $16) 25... b6 {[%emt 0:08:18]} (25... Qc6 $142 26. Qxf7 e5) 26. g3 {[%emt 0:00:59][%cal Oe3f4] Hoping for Bf4!.} ({Weaker is} 26. Qxf7 Qh2+ 27. Kf1 Qh1+ 28. Ke2 Qxg2 $16) 26... Re7 {[%emt 0:08:01]} (26... f6 $142 27. Rec1 g5) 27. Bf4 {[%emt 0:01:07]} e5 {[%emt 0:04:59]} 28. Bxe5 {[%emt 0:00:19]} Qe6 {[%emt 0:01:24]} 29. Qa8+ {[%emt 0:01:31]} Kd7 {[%emt 0:00:05]} 30. Qxa7 {[%emt 0:00:14]} Rc8 {[%emt 0:00:49]} 31. d5 {[%emt 0:02:20]} Qf5 {[%emt 0:01:41]} 32. Bxc7 {[%emt 0:01:19]} Rxe1+ {[%emt 0:00:13]} 33. Rxe1 {[%emt 0:00:01]} Rxc7 {[%emt 0:00:09]} 34. Qxb6 {[%emt 0:00:59] Weighted Error Value: White=0.04 (flawless) /Black=1.04  Loses game:     	---       	Black=1      Mistake:       	---       	Black=3      Inaccurate:     	White=3     	Black=2      OK:         	White=11    	Black=5      Best:        	---       	Black=1      Strong:       	White=1     	---} 1-0

[Event "4NCL Div 1 2024-25"]
[Site "England"]
[Date "2025.04.06"]
[Round "8.44"]
[White "Maycock Bates, David Henry"]
[Black "Chow, Samuel"]
[Result "0-1"]
[Annotator "ChessBase"]
[ECO "C02"]
[WhiteElo "2290"]
[BlackElo "2348"]
[PlyCount "56"]
[EventDate "2024.11.23"]
[EventType "team-tourn"]
[EventCountry "ENG"]
[SourceTitle "playchess.com"]
[Source "ChessBase"]
[SourceQuality "1"]
[TimeControl "40/6000+30:3000+30"]

1. e4 {[%emt 0:14:08]} e6 {[%emt 0:10:20]} 2. d4 {[%emt 0:00:04]} d5 {[%emt 0:00:07]} 3. e5 {[%emt 0:00:05]} c5 {[%emt 0:00:14]} 4. c3 {[%emt 0:00:09]} Nc6 {[%emt 0:00:25]} 5. Nf3 {[%emt 0:00:15]} Bd7 {[%emt 0:00:28]} 6. Be2 {[%emt 0:00:12]} Nge7 {[%emt 0:00:35]} 7. O-O {[%emt 0:00:47]} Ng6 {[%emt 0:01:03]} 8. g3 {[%emt 0:19:25]} f6 {[%emt 0:00:39]} 9. Re1 {[%emt 0:02:03]} cxd4 {[%emt 0:11:13]} 10. cxd4 {[%emt 0:01:42]} fxe5 {[%emt 0:05:11]} 11. Nxe5 {[%emt 0:13:03]} Ngxe5 {[%emt 0:00:42]} 12. dxe5 {[%emt 0:00:15]} Bc5 {[%emt 0:03:01]} 13. Bd3 {[%emt 0:10:18]} Qe7 {[%emt 0:13:00]} 14. Nc3 {[%emt 0:15:53]} O-O {[%emt 0:02:34]} 15. Bf4 {[%emt 0:03:41]} Rxf4 {[%emt 0:05:36]} 16. gxf4 {[%emt 0:00:32]} Qh4 {[%emt 0:00:17]} 17. Kh1 {[%emt 0:13:48]} Qxf4 {[%emt 0:13:37]} 18. Qh5 {[%emt 0:07:07]} h6 {[%emt 0:05:14]} 19. Re2 {[%emt 0:06:00]} Nb4 {[%emt 0:05:02]} 20. Ne4 {[%emt 0:00:30]} dxe4 {[%emt 0:10:35]} 21. Bxe4 {[%emt 0:00:02]} Bc6 {[%emt 0:00:39]} 22. Bxc6 {[%emt 0:00:19]} Nxc6 {[%emt 0:00:18]} 23. Rg1 {[%emt 0:00:35]} Rf8 {[%emt 0:01:04]} 24. Qg6 {[%emt 0:00:42]} Rf7 {[%emt 0:00:50]} 25. Qxe6 {[%emt 0:00:04]} Qf3+ {[%emt 0:00:26]} 26. Rg2 {[%emt 0:00:01]} Qxe2 {[%emt 0:00:27]} 27. Qe8+ {[%emt 0:00:25]} Rf8 {[%emt 0:00:36]} 28. Qd7 {[%emt 0:01:21]} Qxe5 {[%emt 0:01:09]} 0-1

[Event "4NCL Div 1 2024-25"]
[Site "England"]
[Date "2025.04.06"]
[Round "8.45"]
[White "Wall, Gavin"]
[Black "Banerjee, Supratit"]
[Result "0-1"]
[Annotator "ChessBase"]
[ECO "C02"]
[WhiteElo "2258"]
[BlackElo "2141"]
[PlyCount "70"]
[EventDate "2024.11.23"]
[EventType "team-tourn"]
[EventCountry "ENG"]
[SourceTitle "playchess.com"]
[Source "ChessBase"]
[SourceQuality "1"]
[TimeControl "40/6000+30:3000+30"]

1. e4 {[%emt 0:18:27]} e6 {[%emt 0:10:18]} 2. d4 {[%emt 0:00:05]} d5 {[%emt 0:00:07]} 3. e5 {[%emt 0:00:04]} c5 {[%emt 0:00:11]} 4. c3 {[%emt 0:00:07]} Nc6 {[%emt 0:00:11]} 5. Nf3 {[%emt 0:00:04]} Qb6 {[%emt 0:00:16]} 6. a3 {[%emt 0:00:39]} Nh6 {[%emt 0:00:19]} 7. b4 {[%emt 0:00:44]} cxd4 {[%emt 0:00:31]} 8. cxd4 {[%emt 0:00:06]} Nf5 {[%emt 0:00:24]} 9. Bb2 {[%emt 0:02:58]} Bd7 {[%emt 0:01:16]} 10. g4 {[%emt 0:05:42]} Nfe7 {[%emt 0:01:39]} 11. Nc3 {[%emt 0:03:26]} h5 {[%emt 0:02:54]} 12. Na4 {[%emt 0:05:29]} Qd8 {[%emt 0:01:07]} 13. Nc5 {[%emt 0:01:25]} Ng6 {[%emt 0:02:08]} 14. gxh5 {[%emt 0:00:40]} Rxh5 {[%emt 0:02:23]} 15. Nxb7 {[%emt 0:04:49]} Qb8 {[%emt 0:01:43]} 16. Nd6+ {[%emt 0:12:26]} Bxd6 {[%emt 0:07:00]} 17. exd6 {[%emt 0:00:02]} Qxd6 {[%emt 0:15:39]} 18. Ne5 {[%emt 0:05:18]} Rxe5+ {[%emt 0:05:10]} 19. dxe5 {[%emt 0:00:05]} Ncxe5 {[%emt 0:01:01]} 20. Rg1 {[%emt 0:14:00]} Nh4 {[%emt 0:20:00]} 21. Rg3 {[%emt 0:02:56]} Nf5 {[%emt 0:04:11]} 22. Rh3 {[%emt 0:00:11]} Ke7 {[%emt 0:07:27]} 23. Bd4 {[%emt 0:01:07]} Rc8 {[%emt 0:03:56]} 24. Bxa7 {[%emt 0:01:01]} Ng6 {[%emt 0:02:05]} 25. Bd3 {[%emt 0:02:59]} Qe5+ {[%emt 0:01:53]} 26. Kf1 {[%emt 0:00:32]} Nf4 {[%emt 0:01:17]} 27. Bxf5 {[%emt 0:01:31]} Qxf5 {[%emt 0:00:43]} 28. Re3 {[%emt 0:12:17]} Bb5+ {[%emt 0:01:45]} 29. Kg1 {[%emt 0:00:29]} Rc4 {[%emt 0:08:01]} 30. Bc5+ {[%emt 0:00:55]} Kd7 {[%emt 0:01:58]} 31. Qf3 {[%emt 0:05:16]} Bc6 {[%emt 0:02:05]} 32. Rd1 {[%emt 0:10:40]} d4 {[%emt 0:02:10]} 33. Qg3 {[%emt 0:00:00]} Kc7 {[%emt 0:01:55]} 34. Bxd4 {[%emt 0:00:00]} Rxd4 {[%emt 0:00:22]} 35. Rc1 {[%emt 0:00:00]} Qd5 {[%emt 0:01:16]} 0-1

[Event "4NCL Div 1 2024-25"]
[Site "England"]
[Date "2025.04.06"]
[Round "8.46"]
[White "Finn, Peter"]
[Black "Li, Harry"]
[Result "0-1"]
[Annotator "ChessBase"]
[ECO "E05"]
[WhiteElo "2199"]
[BlackElo "2203"]
[PlyCount "110"]
[EventDate "2024.11.23"]
[EventType "team-tourn"]
[EventCountry "ENG"]
[SourceTitle "playchess.com"]
[Source "ChessBase"]
[SourceQuality "1"]
[TimeControl "40/6000+30:3000+30"]

1. d4 {[%emt 0:10:03]} d5 {[%emt 0:10:02]} 2. Nf3 {[%emt 0:00:07]} Nf6 {[%emt 0:00:04]} 3. g3 {[%emt 0:00:31]} e6 {[%emt 0:00:05]} 4. Bg2 {[%emt 0:00:05]} Be7 {[%emt 0:00:03]} 5. O-O {[%emt 0:00:08]} O-O {[%emt 0:00:02]} 6. c4 {[%emt 0:00:06]} dxc4 {[%emt 0:00:03]} 7. Ne5 {[%emt 0:00:06]} Nc6 {[%emt 0:00:05]} 8. Bxc6 {[%emt 0:00:11]} bxc6 {[%emt 0:00:03]} 9. Nxc6 {[%emt 0:00:09]} Qe8 {[%emt 0:00:07]} 10. Nxe7+ {[%emt 0:00:06]} Qxe7 {[%emt 0:00:02]} 11. Qc2 {[%emt 0:00:13]} e5 {[%emt 0:00:10]} 12. Rd1 {[%emt 0:00:06]} Rd8 {[%emt 0:12:24]} 13. dxe5 {[%emt 0:09:32]} Rxd1+ {[%emt 0:00:06]} 14. Qxd1 {[%emt 0:00:06]} Qxe5 {[%emt 0:00:19]} 15. Bf4 {[%emt 0:12:23]} Qe7 {[%emt 0:01:05]} 16. Nc3 {[%emt 0:01:18]} Be6 {[%emt 0:04:39]} 17. Qd4 {[%emt 0:09:21]} Qb4 {[%emt 0:21:54]} 18. Be5 {[%emt 0:10:54]} c5 {[%emt 0:01:38]} 19. Qf4 {[%emt 0:12:45]} Nd7 {[%emt 0:02:22]} 20. Ne4 {[%emt 0:00:54]} Nxe5 {[%emt 0:00:30]} 21. Qxe5 {[%emt 0:00:06]} Rd8 {[%emt 0:12:41]} 22. Qg5 {[%emt 0:11:53]} Qb6 {[%emt 0:11:37]} 23. Nf6+ {[%emt 0:07:02]} Kh8 {[%emt 0:00:56]} 24. Nh5 {[%emt 0:00:20]} Rg8 {[%emt 0:00:53]} 25. Qe5 {[%emt 0:01:29]} f6 {[%emt 0:02:06]} 26. Qc3 {[%emt 0:03:27]} Rb8 {[%emt 0:02:20]} 27. Nf4 {[%emt 0:06:49]} Bg8 {[%emt 0:06:55]} 28. Rb1 {[%emt 0:01:05]} Qb4 {[%emt 0:01:38]} 29. Qc2 {[%emt 0:02:06]} a5 {[%emt 0:07:09]} 30. e4 {[%emt 0:01:45]} c3 {[%emt 0:00:56]} 31. b3 {[%emt 0:00:57]} c4 {[%emt 0:04:45]} 32. Rc1 {[%emt 0:04:56]} cxb3 {[%emt 0:00:13]} 33. axb3 {[%emt 0:00:05]} Bxb3 {[%emt 0:02:09]} 34. Qxc3 {[%emt 0:00:05]} Qxc3 {[%emt 0:00:18]} 35. Rxc3 {[%emt 0:00:03]} a4 {[%emt 0:00:05]} 36. Nd3 {[%emt 0:02:57]} Kg8 {[%emt 0:01:07]} 37. Nc5 {[%emt 0:02:19]} Kf7 {[%emt 0:03:32]} 38. f4 {[%emt 0:00:29]} Ke7 {[%emt 0:01:58]} 39. Kf2 {[%emt 0:00:19]} Kd6 {[%emt 0:01:15]} 40. Ke3 {[%emt 0:01:09]} Rb5 {[%emt 0:00:39]} 41. Kd4 {[%emt 0:24:54]} Rb4+ {[%emt 0:20:12]} 42. Ke3 {[%emt 0:00:13]} Bc4 {[%emt 0:05:04]} 43. Nd3 {[%emt 0:04:46]} Bxd3 {[%emt 0:00:37]} 44. Rxd3+ {[%emt 0:00:05]} Kc5 {[%emt 0:06:47]} 45. Rd7 {[%emt 0:01:35]} a3 {[%emt 0:00:51]} 46. Ra7 {[%emt 0:01:22]} Rb3+ {[%emt 0:00:57]} 47. Kd2 {[%emt 0:01:31]} Kb4 {[%emt 0:07:18]} 48. e5 {[%emt 0:01:47]} fxe5 {[%emt 0:00:06]} 49. fxe5 {[%emt 0:00:07]} Rb2+ {[%emt 0:00:04]} 50. Kd3 {[%emt 0:07:26]} a2 {[%emt 0:01:19]} 51. e6 {[%emt 0:03:37]} Rb3+ {[%emt 0:00:07]} 52. Kd4 {[%emt 0:00:04]} Ra3 {[%emt 0:00:46]} 53. Rb7+ {[%emt 0:00:12]} Ka4 {[%emt 0:00:18]} 54. Ra7+ {[%emt 0:00:23]} Kb3 {[%emt 0:00:09]} 55. Rb7+ {[%emt 0:02:43]} Kc2 {[%emt 0:00:06]} 0-1